fUSD/lending_fUSD_20250814
["ID","MTS","AMOUNT","RATE_DAILY","PERIOD"]
[379182458,1755179450263,-400.0,0.00027397,2]
[379182461,1755179450277,-400.0,0.00027397,2]
[379182463,1755179450287,-400.0,0.00027397,2]
[379182465,1755179450299,-9912.73,0.00027397,2]
[379182467,1755179450309,-2271.01,0.00027397,2]
[379182469,1755179450319,-1145.42,0.00027397,2]
[379182471,1755179450330,-7520.55,0.00027397,2]
[379182473,1755179450341,-4423.486674,0.00027397,7]
[379182475,1755179450351,-400.0,0.00027397,2]
[379182477,1755179450361,-6842.82,0.00027397,2]
[379182479,1755179450373,-400.0,0.00027397,2]
[379182481,1755179450383,-400.0,0.00027397,2]
[379182483,1755179450393,-982.43,0.00027397,2]
[379182485,1755179450403,-871.48,0.00027397,2]
[379182487,1755179450413,-400.0,0.00027397,2]
[379182489,1755179450424,-1894.35,0.00027397,2]
[379182491,1755179450434,-5391.21,0.00027397,2]
[379182493,1755179450444,-4423.486674,0.00027397,7]
[379182495,1755179450454,-500.0,0.00027397,2]
[379182497,1755179450465,-400.0,0.00027397,2]
[379182499,1755179450476,-1388.37,0.00027397,2]
[379182502,1755179450486,-4960.43,0.00027397,2]
[379182504,1755179450496,-3252.76,0.00027397,2]
[379182506,1755179450505,-3949.77,0.00027397,2]
[379182508,1755179450517,-400.0,0.00027397,2]
[379182510,1755179450527,-3328.27,0.00027397,2]
[379182512,1755179450537,-400.0,0.00027397,2]
[379182514,1755179450547,-1135.62,0.00027397,2]
[379182516,1755179450556,-3427.84,0.00027397,2]
[379182518,1755179450567,-6433.13,0.00027397,2]
[379182520,1755179450576,-7052.59,0.00027397,2]
[379182522,1755179450586,-1803.49,0.00027397,2]
[379182524,1755179450596,-5167.46,0.00027397,2]
[379182526,1755179450606,-1209.61,0.00027397,2]
[379182528,1755179450616,-941.35,0.00027397,2]
[379182530,1755179450626,-1678.98,0.00027397,2]
[379182532,1755179450636,-3519.05,0.00027397,2]
[379182534,1755179450646,-1304.49,0.00027397,2]
[379182536,1755179450656,-4595.48,0.00027397,2]
[379182538,1755179450666,-1924.17,0.00027397,2]
[379182540,1755179450676,-3884.79,0.00027397,2]
[379182543,1755179450686,-885.62,0.00027397,2]
[379182545,1755179450696,-400.0,0.00027397,2]
[379182547,1755179450705,-400.0,0.00027397,2]
[379182549,1755179450718,-2611.27,0.00027397,2]
[379182551,1755179450728,-4623.16,0.00027397,2]
[379182553,1755179450738,-585.67,0.00027397,2]
[379182555,1755179450748,-5363.97,0.00027397,2]
[379182557,1755179450758,-19296.96,0.00027397,2]
[379182559,1755179450768,-423.47,0.00027397,2]
[379182561,1755179450778,-5352.24,0.00027397,2]
[379182563,1755179450788,-3189.02,0.00027397,2]
[379182565,1755179450798,-1771.38,0.00027397,2]
[379182567,1755179450808,-400.0,0.00027397,2]
[379182569,1755179450817,-13949.2,0.00027397,2]
[379182571,1755179450827,-2058.24,0.00027397,2]
[379182573,1755179450837,-9059.33,0.00027397,2]
[379182575,1755179450847,-400.0,0.00027397,2]
[379182577,1755179450857,-1778.74,0.00027397,2]
[379182579,1755179450867,-400.0,0.00027397,2]
[379182581,1755179450877,-3667.81,0.00027397,2]
[379182583,1755179450887,-500.0,0.00027397,2]
[379182585,1755179450896,-2991.09,0.00027397,2]
[379182587,1755179450907,-500.0,0.00027397,2]
[379182589,1755179450916,-500.0,0.00027397,2]
[379182591,1755179450926,-2994.02,0.00027397,2]
[379182593,1755179450938,-151.0,0.00027397,7]
[379182596,1755179450949,-400.0,0.00027397,2]
[379182597,1755179450961,-955.37,0.00027397,2]
[379182600,1755179450973,-3363.33,0.00027397,2]
[379182602,1755179450983,-2865.58,0.00027397,2]
[379182604,1755179450992,-378.970415,0.00027397,7]
[379182606,1755179451002,-754.48,0.00027397,2]
[379182608,1755179451012,-454.18,0.00027397,2]
[379182610,1755179451022,-1106.23,0.00027397,2]
[379182612,1755179451032,-791.65,0.00027397,2]
[379182614,1755179451044,-510.56878289,0.00027397,2]
[379182616,1755179451054,-5409.25,0.00027397,2]
[379182618,1755179451065,-2905.11,0.00027397,2]
[379182620,1755179451076,-657.11,0.00027397,2]
[379182622,1755179451086,-378.970415,0.00027397,7]
[379182624,1755179451100,-400.0,0.00027397,2]
[379182626,1755179451110,-400.0,0.00027397,2]
[379182628,1755179451120,-400.0,0.00027397,2]
[379182630,1755179451129,-3070.24,0.00027397,2]
[379182632,1755179451139,-431.91,0.00027397,2]
[379182634,1755179451150,-3703.3,0.00027397,2]
[379182636,1755179451160,-468.06,0.00027397,2]
[379182638,1755179451169,-6380.84,0.00027397,2]
[379182641,1755179451179,-565.48,0.00027397,2]
[379182642,1755179451189,-5109.05,0.00027397,2]
[379182645,1755179451199,-400.0,0.00027397,2]
[379182647,1755179451209,-2866.62,0.00027397,2]
[379182649,1755179451223,-2084.09,0.00027397,2]
[379182651,1755179451233,-3397.05,0.00027397,2]
[379182653,1755179451244,-400.0,0.00027397,2]
[379182655,1755179451254,-653.27,0.00027397,2]
[379182657,1755179451264,-3809.52,0.00027397,2]
[379182659,1755179451275,-1799.44,0.00027397,2]
[379182661,1755179451286,-424.5,0.00027397,2]
[379182662,1755179451301,-5709.47,0.00027397,2]
[379182665,1755179451311,-400.0,0.00027397,2]
[379182667,1755179451320,-400.0,0.00027397,2]
[379182669,1755179451330,-400.0,0.00027397,2]
[379182670,1755179451340,-3146.38,0.00027397,2]
[379182673,1755179451350,-400.0,0.00027397,2]
[379182674,1755179451359,-7895.66,0.00027397,2]
[379182677,1755179451369,-6159.72,0.00027397,2]
[379182679,1755179451380,-400.0,0.00027397,2]
[379182681,1755179451390,-1886.02,0.00027397,2]
[379182683,1755179451399,-968.99,0.00027397,2]
[379182685,1755179451409,-400.0,0.00027397,2]
[379182687,1755179451418,-5017.0,0.00027397,2]
[379182689,1755179451429,-2688.66,0.00027397,2]
[379182691,1755179451439,-7360.68,0.00027397,2]
[379182693,1755179451449,-2900.49,0.00027397,2]
[379182695,1755179451459,-400.0,0.00027397,2]
[379182697,1755179451472,-15994.02,0.00027397,2]
[379182699,1755179451482,-400.0,0.00027397,2]
[379182701,1755179451492,-533.39030289,0.00027397,2]
[379182703,1755179451503,-400.0,0.00027397,2]
[379182705,1755179451513,-4469.76,0.00027397,2]
[379182707,1755179451523,-400.0,0.00027397,2]
[379182709,1755179451533,-1938.57,0.00027397,2]
[379182711,1755179451547,-2173.39,0.00027397,2]
[379182713,1755179451557,-400.0,0.00027397,2]
[379182715,1755179451567,-17553.24,0.00027397,2]
[379182717,1755179451577,-400.0,0.00027397,2]
[379182719,1755179451587,-400.0,0.00027397,2]
[379182722,1755179451597,-400.0,0.00027397,2]
[379182723,1755179451607,-400.53,0.00027397,2]
[379182726,1755179451617,-400.0,0.00027397,2]
[379182728,1755179451627,-2036.21,0.00027397,2]
[379182730,1755179451637,-589.61,0.00027397,2]
[379182732,1755179451646,-400.0,0.00027397,2]
[379182734,1755179451656,-287.88658445,0.00027397,2]
[379182736,1755179451666,-400.0,0.00027397,2]
[379182738,1755179451676,-464.22,0.00027397,2]
[379182740,1755179451686,-1533.43,0.00027397,2]
[379182741,1755179451695,-8251.41,0.00027397,2]
[379182744,1755179451705,-852.48,0.00027397,2]
[379182745,1755179451715,-601.11,0.00027397,2]
[379182748,1755179451727,-400.0,0.00027397,2]
[379182749,1755179451736,-6634.66,0.00027397,2]
[379182751,1755179451746,-400.0,0.00027397,2]
[379182754,1755179451758,-3246.07,0.00027397,2]
[379182756,1755179451768,-400.0,0.00027397,2]
[379182757,1755179451778,-4098.25,0.00027397,2]
[379182760,1755179451787,-400.0,0.00027397,2]
[379182762,1755179451797,-2294.27,0.00027397,2]
[379182763,1755179451807,-400.0,0.00027397,2]
[379182765,1755179451817,-2274.1,0.00027397,2]
[379182767,1755179451826,-463.06,0.00027397,2]
[379182769,1755179451836,-400.0,0.00027397,2]
[379182771,1755179451845,-8323.29,0.00027397,2]
[379182773,1755179451855,-400.0,0.00027397,2]
[379182775,1755179451864,-1373.04,0.00027397,2]
[379182778,1755179451874,-3979.16,0.00027397,2]
[379182780,1755179451884,-409.81883838,0.00027397,2]
[379182782,1755179451894,-1673.17,0.00027397,2]
[379182784,1755179451904,-3417.12,0.00027397,2]
[379182786,1755179451913,-8136.51,0.00027397,2]
[379182788,1755179451924,-3035.23,0.00027397,2]
[379182790,1755179451933,-5646.32,0.00027397,2]
[379182792,1755179451943,-2910.41,0.00027397,2]
[379182794,1755179451954,-400.0,0.00027397,2]
[379182796,1755179451963,-389.92840596,0.00027397,2]
[379182798,1755179451977,-151.0,0.00027397,7]
[379182800,1755179451987,-5004.11,0.00027397,2]
[379182802,1755179451997,-400.0,0.00027397,2]
[379182804,1755179452007,-400.0,0.00027397,2]
[379182806,1755179452017,-200.0,0.00027397,2]
[379182807,1755179452027,-479.77596282,0.00027397,2]
[379182809,1755179452037,-400.0,0.00027397,2]
[379182810,1755179452047,-2945.4,0.00027397,2]
[379182811,1755179452057,-2878.63,0.00027397,2]
[379182812,1755179452066,-826.15,0.00027397,2]
[379182813,1755179452076,-4999.63,0.00027397,2]
[379182814,1755179452086,-1661.28,0.00027397,2]
[379182815,1755179452096,-380.84188387,0.00027397,2]
[379182816,1755179452106,-2802.14,0.00027397,2]
[379182817,1755179452115,-400.0,0.00027397,2]
[379182818,1755179452127,-400.0,0.00027397,2]
[379182819,1755179452136,-400.0,0.00027397,2]
[379182820,1755179452146,-7399.68,0.00027397,2]
[379182821,1755179452156,-400.0,0.00027397,2]
[379182822,1755179452166,-1043.23,0.00027397,2]
[379182823,1755179452175,-5144.03,0.00027397,2]
[379182824,1755179452185,-2015.03,0.00027397,2]
[379182826,1755179452195,-2644.47,0.00027397,2]
[379182828,1755179452204,-448.69,0.00027397,2]
[379182830,1755179452213,-400.0,0.00027397,2]
[379182832,1755179452227,-400.19030227,0.00027397,2]
[379182834,1755179452236,-1409.485429,0.00027397,7]
[379182836,1755179452246,-400.0,0.00027397,2]
[379182838,1755179452256,-400.0,0.00027397,2]
[379182840,1755179452265,-400.0,0.00027397,2]
[379182842,1755179452275,-1767.72,0.00027397,2]
[379182844,1755179452290,-4162.35,0.00027397,2]
[379182846,1755179452300,-985.352122,0.00027397,7]
[379182848,1755179452309,-516.04,0.00027397,2]
[379182850,1755179452319,-3908.7,0.00027397,2]
[379182852,1755179452330,-582.84,0.00027397,2]
[379182855,1755179452339,-400.0,0.00027397,2]
[379182857,1755179452349,-1075.04,0.00027397,2]
[379182859,1755179452359,-5684.04,0.00027397,2]
[379182861,1755179452369,-400.0,0.00027397,2]
[379182863,1755179452380,-1409.485429,0.00027397,7]
[379182865,1755179452390,-5202.71,0.00027397,2]
[379182867,1755179452399,-1726.11,0.00027397,2]
[379182869,1755179452409,-985.352122,0.00027397,7]
[379182871,1755179452419,-452.07,0.00027397,2]
[379182873,1755179452428,-566.36,0.00027397,2]
[379182875,1755179452438,-940.58,0.00027397,2]
[379182877,1755179452448,-686.6,0.00027397,2]
[379182879,1755179452457,-400.0,0.00027397,2]
[379182881,1755179452469,-400.0,0.00027397,2]
[379182883,1755179452478,-400.0,0.00027397,2]
[379182885,1755179452488,-828.52,0.00027397,2]
[379182887,1755179452497,-513.48,0.00027397,2]
[379182905,1755179452656,-151.0,0.00027397,7]
[379182907,1755179452667,-400.0,0.00027397,2]
[379182909,1755179452677,-11662.69,0.00027397,2]
[379182911,1755179452687,-14293.19,0.00027397,2]
[379182913,1755179452697,-24977.85,0.00027397,2]
[379182915,1755179452707,-400.0,0.00027397,2]
[379182917,1755179452718,-4838.71,0.00027397,2]
[379182919,1755179452728,-5306.63,0.00027397,2]
[379182921,1755179452738,-1255.95,0.00027397,2]
[379182923,1755179452747,-1882.75,0.00027397,2]
[379182925,1755179452757,-5329.72,0.00027397,2]
[379182927,1755179452766,-404.06,0.00027397,2]
[379182929,1755179452776,-722.05,0.00027397,2]
[379182931,1755179452785,-12037.05,0.00027397,2]
[379182933,1755179452794,-506.48,0.00027397,2]
[379182935,1755179452804,-1000.0,0.00027397,7]
[379182937,1755179452813,-1000.0,0.00027397,7]
[379182939,1755179452822,-496.0,0.00027397,7]
[379182941,1755179452832,-300.0,0.00027397,2]
[379182943,1755179452841,-342.47,0.00027397,80]
[379182945,1755179452851,-173.18,0.00027397,2]
[379182947,1755179452860,-150.0,0.00027397,2]
[379182949,1755179452870,-165.73,0.00027397,2]
[379182951,1755179452880,-1076.34,0.00027397,2]
[379182953,1755179452891,-797.99,0.00027397,2]
[379182955,1755179452901,-150.0,0.00027397,2]
[379182957,1755179452911,-117700.27497227,0.000274,2]
[379182959,1755179452920,-151.0,0.000274,7]
[379182961,1755179452930,-458.13769775,0.000274,7]
[379182963,1755179452939,-160.0,0.000274,7]
[379182965,1755179452948,-1563.04,0.000274,2]
[379182967,1755179452957,-163.46442568,0.000274,2]
[379182969,1755179452970,-163.46442567,0.000274,2]
[379182971,1755179452980,-211.86673127,0.000274,7]
[379182973,1755179452990,-978.84039223,0.00027407,2]
[379182975,1755179453000,-738.66722158,0.00027411,2]
[379182977,1755179453010,-2978.65270606,0.00027424,2]
[379182979,1755179453022,-229.59300896,0.00027433,2]
[379182981,1755179453031,-867.88410183,0.00027434,2]
[379182983,1755179453041,-9155.60440329,0.00027434,2]
[379182985,1755179453051,-13299.00223313,0.00027434,2]
[379182987,1755179453061,-190.88464858,0.00027434,2]
[379182989,1755179453071,-809.3425484,0.00027434,2]
[379182991,1755179453081,-401.42150218,0.00027448,2]
[379182993,1755179453091,-1882.53732048,0.00027461,2]
[379182995,1755179453103,-506.0,0.00027466,8]
[379182997,1755179453113,-1975.08,0.00027489,2]
[379182998,1755179453123,-3069.0,0.00027507,2]
[379183000,1755179453133,-2716.0,0.00027507,2]
[379183002,1755179453142,-1756.0,0.00027507,2]
[379183004,1755179453150,-151.0,0.00027507,7]
[379183006,1755179453159,-4897.993536,0.00027507,7]
[379183009,1755179453170,-676.525315,0.00027507,7]
[379183010,1755179453180,-4897.993536,0.00027507,7]
[379183013,1755179453190,-676.525315,0.00027507,7]
[379183014,1755179453200,-1386.24,0.00027511,2]
[379183016,1755179453209,-500.0,0.00027511,2]
[379183019,1755179453225,-150.0,0.00027512,7]
[379183021,1755179453235,-539.16276803,0.00027513,2]
[379183022,1755179453245,-401.42150218,0.00027514,2]
[379183024,1755179453255,-1302.37,0.0002752,2]
[379183027,1755179453265,-1302.37,0.0002752,2]
[379183028,1755179453275,-1000.0,0.0002752,2]
[379183030,1755179453287,-1140.04,0.0002752,2]
[379183033,1755179453302,-1140.04,0.0002752,2]
[379183035,1755179453312,-1975.08,0.0002752,2]
[379183037,1755179453323,-500.0,0.00027521,2]
[379183039,1755179453334,-500.0,0.00027521,2]
[379183041,1755179453344,-500.0,0.00027521,2]
[379183042,1755179453354,-500.0,0.00027521,2]
[379183044,1755179453367,-500.0,0.00027521,2]
[379183047,1755179453378,-500.0,0.00027521,2]
[379183048,1755179453388,-853.66,0.00027521,2]
[379183051,1755179453398,-853.66,0.00027521,2]
[379183053,1755179453408,-1386.24,0.00027521,2]
[379183054,1755179453418,-1302.37,0.00027521,2]
[379183057,1755179453427,-500.0,0.00027521,2]
[379183058,1755179453437,-500.0,0.00027521,2]
[379183060,1755179453447,-1140.04,0.00027521,2]
[379183063,1755179453457,-500.0,0.00027521,2]
[379183065,1755179453470,-542.52,0.00027522,2]
[379183067,1755179453480,-400.0,0.00027522,2]
[379183069,1755179453490,-514.53,0.00027522,2]
[379183070,1755179453500,-400.0,0.00027522,2]
[379183073,1755179453509,-1099.09,0.00027522,2]
[379183074,1755179453519,-400.0,0.00027522,2]
[379183076,1755179453529,-500.0,0.00027522,2]
[379183078,1755179453539,-400.0,0.00027522,2]
[379183080,1755179453548,-1089.98,0.00027522,2]
[379183083,1755179453558,-400.0,0.00027522,2]
[379183085,1755179453568,-861.63,0.00027522,2]
[379183087,1755179453578,-400.0,0.00027522,2]
[379183088,1755179453587,-2083.47,0.00027522,2]
[379183091,1755179453597,-402.56876129,0.00027522,2]
[379183092,1755179453607,-400.0,0.00027522,2]
[379183094,1755179453616,-729.18,0.00027522,2]
[379183097,1755179453626,-400.0,0.00027522,2]
[379183099,1755179453636,-400.0,0.00027522,2]
[379183100,1755179453645,-1752.21,0.00027522,2]
[379183102,1755179453655,-400.0,0.00027522,2]
[379183104,1755179453664,-400.0,0.00027522,2]
[379183107,1755179453673,-1450.56,0.00027522,2]
[379183108,1755179453683,-400.0,0.00027522,2]
[379183111,1755179453693,-608.33,0.00027522,2]
[379183112,1755179453702,-400.0,0.00027522,2]
[379183114,1755179453711,-400.0,0.00027522,2]
[379183116,1755179453723,-2051.54,0.00027522,2]
[379183119,1755179453732,-400.0,0.00027522,2]
[379183121,1755179453742,-918.86,0.00027522,2]
[379183123,1755179453751,-400.0,0.00027522,2]
[379183125,1755179453761,-400.0,0.00027522,2]
[379183127,1755179453771,-640.3,0.00027522,2]
[379183129,1755179453780,-400.0,0.00027522,2]
[379183130,1755179453790,-705.43,0.00027522,2]
[379183133,1755179453800,-400.0,0.00027522,2]
[379183135,1755179453810,-445.83,0.00027522,2]
[379183136,1755179453819,-476.97666555,0.00027522,2]
[379183138,1755179453829,-400.0,0.00027522,2]
[379183140,1755179453838,-400.0,0.00027522,2]
[379183142,1755179453848,-1768.18,0.00027522,2]
[379183144,1755179453858,-400.0,0.00027522,2]
[379183146,1755179453867,-1059.74,0.00027522,2]
[379183148,1755179453877,-400.0,0.00027522,2]
[379183150,1755179453887,-445.35,0.00027522,2]
[379183152,1755179453896,-407.17,0.00027522,2]
[379183154,1755179453906,-400.0,0.00027522,2]
[379183156,1755179453915,-400.0,0.00027522,2]
[379183158,1755179453924,-633.16,0.00027522,2]
[379183160,1755179453934,-400.0,0.00027522,2]
[379183162,1755179453943,-400.0,0.00027522,2]
[379183164,1755179453954,-400.0,0.00027522,2]
[379183166,1755179453963,-2494.21,0.00027522,2]
[379183168,1755179453976,-976.99,0.00027522,2]
[379183170,1755179453986,-1445.41,0.00027522,2]
[379183173,1755179453996,-500.0,0.00027522,2]
[379183175,1755179454006,-229.72419692,0.00027522,2]
[379183177,1755179454016,-380.99814733,0.00027522,2]
[379183179,1755179454026,-500.0,0.00027522,2]
[379183181,1755179454038,-400.0,0.00027522,2]
[379183183,1755179454048,-2989.93,0.00027522,2]
[379183185,1755179454058,-400.0,0.00027522,2]
[379183187,1755179454069,-400.0,0.00027522,2]
[379183189,1755179454079,-400.0,0.00027522,2]
[379183191,1755179454090,-214.29654027,0.00027522,2]
[379183193,1755179454101,-400.0,0.00027522,2]
[379183195,1755179454111,-2100.67,0.00027522,2]
[379183197,1755179454122,-400.0,0.00027522,2]
[379183199,1755179454132,-400.0,0.00027522,2]
[379183201,1755179454142,-1185.72,0.00027522,2]
[379183203,1755179454152,-1076.16,0.00027522,2]
[379183205,1755179454162,-2408.09,0.00027522,2]
[379183207,1755179454172,-510.18,0.00027522,2]
[379183209,1755179454182,-400.0,0.00027522,2]
[379183211,1755179454192,-400.0,0.00027522,2]
[379183214,1755179454203,-400.0,0.00027522,2]
[379183216,1755179454213,-1948.72,0.00027522,2]
[379183218,1755179454227,-400.0,0.00027522,2]
[379183220,1755179454236,-400.0,0.00027522,2]
[379183222,1755179454246,-1657.2,0.00027522,2]
[379183224,1755179454256,-400.0,0.00027522,2]
[379183226,1755179454265,-529.58,0.00027522,2]
[379183228,1755179454275,-400.0,0.00027522,2]
[379183230,1755179454286,-462.64,0.00027522,2]
[379183232,1755179454301,-400.0,0.00027522,2]
[379183234,1755179454311,-400.0,0.00027522,2]
[379183236,1755179454321,-923.91,0.00027522,2]
[379183238,1755179454331,-400.0,0.00027522,2]
[379183240,1755179454341,-438.24,0.00027522,2]
[379183242,1755179454350,-400.0,0.00027522,2]
[379183244,1755179454361,-763.97,0.00027522,2]
[379183246,1755179454372,-1061.83,0.00027522,2]
[379183248,1755179454382,-501.63,0.00027522,2]
[379183250,1755179454391,-477.17,0.00027522,2]
[379183252,1755179454402,-400.0,0.00027522,2]
[379183254,1755179454411,-1391.89,0.00027522,2]
[379183256,1755179454421,-1249.11,0.00027522,2]
[379183258,1755179454430,-1582.91,0.00027522,2]
[379183260,1755179454440,-933.88,0.00027522,2]
[379183262,1755179454450,-803.12,0.00027522,2]
[379183264,1755179454459,-400.0,0.00027522,2]
[379183266,1755179454470,-1061.07,0.00027522,2]
[379183268,1755179454480,-2844.95,0.00027522,2]
[379183270,1755179454490,-573.87,0.00027522,2]
[379183272,1755179454500,-435.12,0.00027522,2]
[379183274,1755179454510,-400.0,0.00027522,2]
[379183276,1755179454520,-2363.83,0.00027522,2]
[379183278,1755179454529,-978.04,0.00027522,2]
[379183280,1755179454539,-400.0,0.00027522,2]
[379183281,1755179454548,-400.0,0.00027522,2]
[379183282,1755179454557,-400.0,0.00027522,2]
[379183283,1755179454567,-400.0,0.00027522,2]
[379183284,1755179454578,-500.0,0.00027522,2]
[379183286,1755179454588,-400.0,0.00027522,2]
[379183288,1755179454598,-458.69,0.00027522,2]
[379183290,1755179454607,-482.06,0.00027522,2]
[379183292,1755179454616,-400.0,0.00027522,2]
[379183294,1755179454626,-428.23,0.00027522,2]
[379183296,1755179454636,-1639.73,0.00027522,2]
[379183298,1755179454645,-1030.78,0.00027522,2]
[379183300,1755179454655,-400.0,0.00027522,2]
[379183302,1755179454664,-400.0,0.00027522,2]
[379183304,1755179454673,-864.11,0.00027522,2]
[379183306,1755179454682,-402.28737314,0.00027522,2]
[379183308,1755179454692,-400.0,0.00027522,2]
[379183310,1755179454702,-400.0,0.00027522,2]
[379183312,1755179454712,-400.0,0.00027522,2]
[379183314,1755179454723,-3541.41,0.00027522,2]
[379183316,1755179454733,-690.01,0.00027522,2]
[379183318,1755179454743,-489.54893564,0.00027522,2]
[379183320,1755179454753,-400.0,0.00027522,2]
[379183322,1755179454762,-890.37,0.00027522,2]
[379183324,1755179454772,-400.0,0.00027522,2]
[379183326,1755179454782,-2752.5,0.00027522,2]
[379183328,1755179454791,-884.5,0.00027522,2]
[379183330,1755179454801,-458.25,0.00027522,2]
[379183332,1755179454811,-414.11,0.00027522,2]
[379183334,1755179454820,-400.0,0.00027522,2]
[379183336,1755179454830,-1338.03,0.00027522,2]
[379183338,1755179454840,-1386.24,0.00027522,2]
[379183340,1755179454849,-2112.89,0.00027522,2]
[379183342,1755179454859,-522.27,0.00027522,2]
[379183344,1755179454868,-400.0,0.00027522,2]
[379183346,1755179454880,-400.0,0.00027522,2]
[379183348,1755179454889,-400.0,0.00027522,2]
[379183350,1755179454899,-400.0,0.00027522,2]
[379183352,1755179454908,-457.41,0.00027522,2]
[379183354,1755179454918,-807.14,0.00027522,2]
[379183356,1755179454927,-400.0,0.00027522,2]
[379183358,1755179454936,-400.0,0.00027522,2]
[379183360,1755179454946,-1142.65,0.00027522,2]
[379183362,1755179454955,-1176.77,0.00027522,2]
[379183364,1755179454965,-400.0,0.00027522,2]
[379183366,1755179454977,-400.0,0.00027522,2]
[379183369,1755179454986,-400.0,0.00027522,2]
[379183371,1755179454996,-400.0,0.00027522,2]
[379183373,1755179455006,-1822.43,0.00027522,2]
[379183374,1755179455016,-400.0,0.00027522,2]
[379183377,1755179455025,-3121.96,0.00027522,2]
[379183379,1755179455035,-400.0,0.00027522,2]
[379183381,1755179455045,-1211.83,0.00027522,2]
[379183383,1755179455054,-500.0,0.00027522,2]
[379183385,1755179455064,-1725.18,0.00027522,2]
[379183387,1755179455073,-400.0,0.00027522,2]
[379183388,1755179455082,-1306.67,0.00027522,2]
[379183390,1755179455092,-463.93,0.00027522,2]
[379183392,1755179455101,-325.47431579,0.00027522,2]
[379183394,1755179455111,-400.0,0.00027522,2]
[379183396,1755179455121,-1775.26,0.00027522,2]
[379183398,1755179455131,-1412.24,0.00027522,2]
[379183400,1755179455140,-400.0,0.00027522,2]
[379183402,1755179455150,-400.0,0.00027522,2]
[379183405,1755179455160,-400.0,0.00027522,2]
[379183406,1755179455169,-400.0,0.00027522,2]
[379183409,1755179455179,-1185.25,0.00027522,2]
[379183411,1755179455189,-2732.8,0.00027522,2]
[379183413,1755179455199,-500.0,0.00027522,10]
[379183415,1755179455208,-400.0,0.00027522,2]
[379183417,1755179455220,-400.0,0.00027522,2]
[379183419,1755179455229,-1112.56,0.00027522,2]
[379183421,1755179455239,-511.83,0.00027522,2]
[379183423,1755179455248,-473.89,0.00027522,2]
[379183425,1755179455257,-400.0,0.00027522,2]
[379183427,1755179455266,-1425.49,0.00027522,2]
[379183429,1755179455275,-400.0,0.00027522,2]
[379183431,1755179455286,-400.0,0.00027522,2]
[379183433,1755179455299,-1417.08,0.00027522,2]
[379183435,1755179455308,-400.0,0.00027522,2]
[379183437,1755179455318,-405.29,0.00027522,2]
[379183439,1755179455328,-3152.44,0.00027522,2]
[379183441,1755179455337,-500.0,0.00027522,2]
[379183443,1755179455347,-400.0,0.00027522,2]
[379183445,1755179455357,-581.38,0.00027522,2]
[379183447,1755179455367,-400.0,0.00027522,2]
[379183449,1755179455376,-2540.57,0.00027522,2]
[379183451,1755179455385,-613.53,0.00027522,2]
[379183453,1755179455394,-400.0,0.00027522,2]
[379183455,1755179455404,-400.0,0.00027522,2]
[379183457,1755179455413,-400.0,0.00027522,2]
[379183459,1755179455423,-400.0,0.00027522,2]
[379183461,1755179455432,-1705.24,0.00027522,2]